[Event "Titled Tuesday Blitz March 28 Late 2023"]
[White "Demchenko, Anton"]
[Black "Melkumyan, Hrant"]
[WhiteFideId "4160258"]
[BlackFideId "13302485"]
[WhiteElo "2545"]
[BlackElo "2604"]
[Result "0-1"]
[Round "11"]
[TimeControl "180+2"]
[Date "2023.03.28"]
[WhiteClock "0:00:01"]
[BlackClock "0:00:43"]

1. e4 {[%clk 0:03:00]}  c6 {[%clk 0:02:56]} 2. d3 {[%clk 0:03:01]}  d5 {[%clk 0:02:57]} 3. Nd2 {[%clk 0:03:02]}  e5 {[%clk 0:02:56]} 4. Ngf3 {[%clk 0:03:02]}  Bd6 {[%clk 0:02:57]} 5. g3 {[%clk 0:03:01]}  Nf6 {[%clk 0:02:57]} 6. Bg2 {[%clk 0:03:01]}  O-O {[%clk 0:02:58]} 7. O-O {[%clk 0:03:02]}  Re8 {[%clk 0:02:58]} 8. b3 {[%clk 0:03:02]}  Nbd7 {[%clk 0:02:55]} 9. Bb2 {[%clk 0:03:01]}  a5 {[%clk 0:02:51]} 10. a3 {[%clk 0:03:01]}  Nf8 {[%clk 0:02:45]} 11. Re1 {[%clk 0:02:53]}  Ng6 {[%clk 0:02:46]} 12. exd5 {[%clk 0:02:53]}  cxd5 {[%clk 0:02:45]} 13. c4 {[%clk 0:02:54]}  d4 {[%clk 0:02:42]} 14. Ng5 {[%clk 0:02:52]}  h6 {[%clk 0:02:38]} 15. Nge4 {[%clk 0:02:52]}  Nxe4 {[%clk 0:02:38]} 16. Nxe4 {[%clk 0:02:48]}  Bf8 {[%clk 0:02:38]} 17. Qh5 {[%clk 0:01:55]}  Bd7 {[%clk 0:02:29]} 18. Bc1 {[%clk 0:01:35]}  Qc8 {[%clk 0:02:23]} 19. h3 {[%clk 0:01:30]}  Ra6 {[%clk 0:02:24]} 20. Rb1 {[%clk 0:01:13]}  Rb6 {[%clk 0:02:19]} 21. Bd2 {[%clk 0:00:46]}  Bxa3 {[%clk 0:02:18]} 22. Bxa5 {[%clk 0:00:44]}  Ra6 {[%clk 0:02:18]} 23. b4 {[%clk 0:00:40]}  b6 {[%clk 0:02:18]} 24. Nd6 {[%clk 0:00:40]}  Qb8 {[%clk 0:02:10]} 25. Nxe8 {[%clk 0:00:34]}  bxa5 {[%clk 0:02:10]} 26. b5 {[%clk 0:00:17]}  Rb6 {[%clk 0:02:10]} 27. Be4 {[%clk 0:00:12]}  Nf8 {[%clk 0:01:50]} 28. Bd5 {[%clk 0:00:10]}  Bxe8 {[%clk 0:01:42]} 29. Rxe5 {[%clk 0:00:10]}  Bb4 {[%clk 0:01:26]} 30. Qe2 {[%clk 0:00:08]}  Bd7 {[%clk 0:01:21]} 31. Re4 {[%clk 0:00:07]}  Bxh3 {[%clk 0:01:16]} 32. Bxf7+ {[%clk 0:00:05]}  Kxf7 {[%clk 0:01:12]} 33. Qh5+ {[%clk 0:00:05]}  Kg8 {[%clk 0:01:10]} 34. Qxh3 {[%clk 0:00:05]}  Rf6 {[%clk 0:01:08]} 35. Qg4 {[%clk 0:00:06]}  Qd6 {[%clk 0:01:00]} 36. Qe2 {[%clk 0:00:06]}  a4 {[%clk 0:00:57]} 37. Re8 {[%clk 0:00:04]}  a3 {[%clk 0:00:57]} 38. Ra1 {[%clk 0:00:03]}  Bc3 {[%clk 0:00:51]} 39. Ra2 {[%clk 0:00:03]}  Qb4 {[%clk 0:00:52]} 40. Kg2 {[%clk 0:00:03]}  Bb2 {[%clk 0:00:51]} 41. Qe4 {[%clk 0:00:02]}  Qb3 {[%clk 0:00:43]} 42. Qd5+ {[%clk 0:00:02]}  Kh7 {[%clk 0:00:43]} 43. Qe4+ {[%clk 0:00:02]}  Ng6 {[%clk 0:00:44]} 44. Qd5 {[%clk 0:00:02]}  Rf8 {[%clk 0:00:41]} 45. Rxf8 {[%clk 0:00:01]}  Nxf8 {[%clk 0:00:42]} 46. Qe4+ {[%clk 0:00:01]}  Ng6 {[%clk 0:00:43]} 0-1


[Site "https://www.chess.com"]

[Event "Titled Tuesday Blitz March 28 Late 2023"]
[White "Javakhadze, Zurab"]
[Black "Moussard, Jules"]
[WhiteFideId "13603647"]
[BlackFideId "642908"]
[WhiteElo "2381"]
[BlackElo "2610"]
[Result "0-1"]
[Round "11"]
[TimeControl "180+2"]
[Date "2023.03.28"]
[WhiteClock "0:00:04"]
[BlackClock "0:01:10"]

1. Nf3 {[%clk 0:03:00]}  Nf6 {[%clk 0:02:59]} 2. g3 {[%clk 0:03:01]}  d6 {[%clk 0:02:58]} 3. Bg2 {[%clk 0:03:02]}  g6 {[%clk 0:02:59]} 4. d4 {[%clk 0:03:02]}  Bg7 {[%clk 0:02:59]} 5. O-O {[%clk 0:03:03]}  O-O {[%clk 0:03:00]} 6. b3 {[%clk 0:03:03]}  e5 {[%clk 0:02:59]} 7. dxe5 {[%clk 0:03:02]}  Ng4 {[%clk 0:02:59]} 8. Bb2 {[%clk 0:03:02]}  Nd7 {[%clk 0:03:00]} 9. c4 {[%clk 0:03:02]}  dxe5 {[%clk 0:03:00]} 10. h3 {[%clk 0:02:58]}  Nh6 {[%clk 0:03:00]} 11. Nc3 {[%clk 0:02:55]}  e4 {[%clk 0:02:56]} 12. Nd4 {[%clk 0:02:43]}  Nc5 {[%clk 0:02:48]} 13. Nc2 {[%clk 0:02:21]}  f5 {[%clk 0:02:43]} 14. Ne3 {[%clk 0:02:07]}  Nf7 {[%clk 0:02:36]} 15. Rc1 {[%clk 0:01:56]}  Re8 {[%clk 0:02:27]} 16. Ba3 {[%clk 0:01:51]}  Ne6 {[%clk 0:02:27]} 17. Qxd8 {[%clk 0:01:45]}  Rxd8 {[%clk 0:02:18]} 18. Ned5 {[%clk 0:01:22]}  c6 {[%clk 0:02:17]} 19. Ne7+ {[%clk 0:01:18]}  Kh8 {[%clk 0:02:17]} 20. Nxc8 {[%clk 0:01:06]}  Raxc8 {[%clk 0:02:17]} 21. f3 {[%clk 0:01:07]}  exf3 {[%clk 0:02:00]} 22. exf3 {[%clk 0:01:05]}  f4 {[%clk 0:01:59]} 23. Rfe1 {[%clk 0:01:01]}  Nd4 {[%clk 0:01:52]} 24. gxf4 {[%clk 0:00:55]}  Re8 {[%clk 0:01:47]} 25. Ne4 {[%clk 0:00:52]}  Nf5 {[%clk 0:01:43]} 26. Rcd1 {[%clk 0:00:48]}  Bd4+ {[%clk 0:01:33]} 27. Rxd4 {[%clk 0:00:31]}  Nxd4 {[%clk 0:01:34]} 28. Bb2 {[%clk 0:00:31]}  c5 {[%clk 0:01:34]} 29. Rd1 {[%clk 0:00:28]}  b6 {[%clk 0:01:34]} 30. Rxd4 {[%clk 0:00:19]}  cxd4 {[%clk 0:01:35]} 31. Bxd4+ {[%clk 0:00:20]}  Kg8 {[%clk 0:01:35]} 32. Nf6+ {[%clk 0:00:21]}  Kf8 {[%clk 0:01:36]} 33. Nxe8 {[%clk 0:00:20]}  Rxe8 {[%clk 0:01:35]} 34. Kf2 {[%clk 0:00:21]}  Nd6 {[%clk 0:01:33]} 35. Be5 {[%clk 0:00:21]}  Nf5 {[%clk 0:01:30]} 36. Bf1 {[%clk 0:00:21]}  Rd8 {[%clk 0:01:30]} 37. Ke1 {[%clk 0:00:17]}  Ng3 {[%clk 0:01:25]} 38. Bg2 {[%clk 0:00:13]}  Kf7 {[%clk 0:01:24]} 39. b4 {[%clk 0:00:12]}  Ke6 {[%clk 0:01:22]} 40. a4 {[%clk 0:00:12]}  Rd3 {[%clk 0:01:21]} 41. Kf2 {[%clk 0:00:12]}  Nf5 {[%clk 0:01:20]} 42. Bf1 {[%clk 0:00:12]}  Ra3 {[%clk 0:01:17]} 43. c5 {[%clk 0:00:12]}  bxc5 {[%clk 0:01:15]} 44. bxc5 {[%clk 0:00:13]}  Ra2+ {[%clk 0:01:14]} 45. Ke1 {[%clk 0:00:11]}  Kd5 {[%clk 0:01:13]} 46. Bb5 {[%clk 0:00:05]}  Kxc5 {[%clk 0:01:13]} 47. Bf6 {[%clk 0:00:05]}  Nd4 {[%clk 0:01:10]} 48. Be7+ {[%clk 0:00:04]}  Kd5 {[%clk 0:01:10]} 0-1


[Site "https://www.chess.com"]

[Event "Titled Tuesday Blitz March 28 Late 2023"]
[White "Costachi, Mihnea"]
[Black "Goltsev, Dmitry"]
[WhiteFideId "1217518"]
[BlackFideId "24176710"]
[WhiteElo "2456"]
[BlackElo "2336"]
[Result "1-0"]
[Round "11"]
[TimeControl "180+2"]
[Date "2023.03.28"]
[WhiteClock "0:00:55"]
[BlackClock "0:00:03"]

1. d4 {[%clk 0:03:00]}  Nf6 {[%clk 0:02:59]} 2. c4 {[%clk 0:03:01]}  e6 {[%clk 0:02:59]} 3. Nf3 {[%clk 0:03:01]}  Bb4+ {[%clk 0:02:59]} 4. Bd2 {[%clk 0:03:01]}  Qe7 {[%clk 0:02:59]} 5. Nc3 {[%clk 0:03:01]}  b6 {[%clk 0:02:59]} 6. g3 {[%clk 0:02:59]}  Bb7 {[%clk 0:02:54]} 7. Bg2 {[%clk 0:02:59]}  O-O {[%clk 0:02:54]} 8. O-O {[%clk 0:02:59]}  d6 {[%clk 0:02:54]} 9. b3 {[%clk 0:02:54]}  Nbd7 {[%clk 0:02:52]} 10. a3 {[%clk 0:02:54]}  Bxc3 {[%clk 0:02:52]} 11. Bxc3 {[%clk 0:02:55]}  e5 {[%clk 0:02:53]} 12. dxe5 {[%clk 0:02:53]}  dxe5 {[%clk 0:02:52]} 13. Qc2 {[%clk 0:02:48]}  a5 {[%clk 0:02:49]} 14. b4 {[%clk 0:02:49]}  axb4 {[%clk 0:02:42]} 15. axb4 {[%clk 0:02:48]}  Ne4 {[%clk 0:02:42]} 16. Ng5 {[%clk 0:02:15]}  Qxg5 {[%clk 0:02:27]} 17. Bxe4 {[%clk 0:02:15]}  Bxe4 {[%clk 0:02:14]} 18. Qxe4 {[%clk 0:02:16]}  Rxa1 {[%clk 0:02:09]} 19. Rxa1 {[%clk 0:02:17]}  Qe7 {[%clk 0:02:08]} 20. Qc6 {[%clk 0:02:12]}  Qe6 {[%clk 0:01:29]} 21. Qxc7 {[%clk 0:01:58]}  Nf6 {[%clk 0:01:28]} 22. Bxe5 {[%clk 0:01:39]}  Ng4 {[%clk 0:01:17]} 23. Bd4 {[%clk 0:01:39]}  Qxe2 {[%clk 0:01:11]} 24. h3 {[%clk 0:01:30]}  Qe4 {[%clk 0:00:50]} 25. Qf4 {[%clk 0:01:19]}  Nf6 {[%clk 0:00:14]} 26. Qxe4 {[%clk 0:01:16]}  Nxe4 {[%clk 0:00:15]} 27. Bxb6 {[%clk 0:01:17]}  Nd2 {[%clk 0:00:14]} 28. c5 {[%clk 0:01:07]}  Nf3+ {[%clk 0:00:13]} 29. Kg2 {[%clk 0:01:05]}  Nd4 {[%clk 0:00:14]} 30. Rd1 {[%clk 0:01:03]}  Nb5 {[%clk 0:00:12]} 31. c6 {[%clk 0:00:59]}  Rc8 {[%clk 0:00:03]} 32. c7 {[%clk 0:00:55]} 1-0


[Site "https://www.chess.com"]

[Event "Titled Tuesday Blitz March 28 Late 2023"]
[White "Mekhitarian, Krikor Sevag"]
[Black "angelgab3"]
[WhiteFideId "2107660"]
[WhiteElo "2604"]
[BlackElo "2582"]
[Result "1-0"]
[Round "11"]
[TimeControl "180+2"]
[Date "2023.03.28"]
[WhiteClock "0:00:08"]
[BlackClock "0:00:10"]

1. Nf3 {[%clk 0:03:00]}  Nf6 {[%clk 0:02:58]} 2. c4 {[%clk 0:03:00]}  e6 {[%clk 0:02:58]} 3. Nc3 {[%clk 0:03:00]}  d5 {[%clk 0:02:58]} 4. e3 {[%clk 0:03:00]}  Be7 {[%clk 0:02:57]} 5. b3 {[%clk 0:03:01]}  O-O {[%clk 0:02:57]} 6. Bb2 {[%clk 0:03:01]}  c5 {[%clk 0:02:56]} 7. cxd5 {[%clk 0:03:01]}  exd5 {[%clk 0:02:57]} 8. d4 {[%clk 0:03:01]}  Nc6 {[%clk 0:02:57]} 9. Be2 {[%clk 0:02:59]}  Ne4 {[%clk 0:02:55]} 10. O-O {[%clk 0:02:38]}  Bf6 {[%clk 0:02:50]} 11. Na4 {[%clk 0:02:13]}  Bg4 {[%clk 0:02:21]} 12. Rc1 {[%clk 0:01:54]}  cxd4 {[%clk 0:02:18]} 13. Nxd4 {[%clk 0:01:51]}  Bxe2 {[%clk 0:02:19]} 14. Nxe2 {[%clk 0:01:47]}  Bxb2 {[%clk 0:02:15]} 15. Nxb2 {[%clk 0:01:48]}  Qf6 {[%clk 0:02:15]} 16. Na4 {[%clk 0:01:39]}  Rad8 {[%clk 0:02:13]} 17. f3 {[%clk 0:01:23]}  Ng5 {[%clk 0:02:06]} 18. Nc5 {[%clk 0:01:20]}  b6 {[%clk 0:01:55]} 19. Nd3 {[%clk 0:01:15]}  Rd6 {[%clk 0:01:34]} 20. Qd2 {[%clk 0:01:14]}  Re8 {[%clk 0:01:31]} 21. Nef4 {[%clk 0:00:58]}  Qe7 {[%clk 0:01:24]} 22. Rfe1 {[%clk 0:00:56]}  Red8 {[%clk 0:01:11]} 23. Nf2 {[%clk 0:00:49]}  Ne5 {[%clk 0:01:07]} 24. Qe2 {[%clk 0:00:38]}  g6 {[%clk 0:00:53]} 25. N2d3 {[%clk 0:00:38]}  h5 {[%clk 0:00:50]} 26. Nxe5 {[%clk 0:00:38]}  Qxe5 {[%clk 0:00:51]} 27. Nd3 {[%clk 0:00:36]}  Qe7 {[%clk 0:00:51]} 28. Qf2 {[%clk 0:00:36]}  h4 {[%clk 0:00:46]} 29. h3 {[%clk 0:00:37]}  Ne6 {[%clk 0:00:40]} 30. Ne5 {[%clk 0:00:28]}  Qf6 {[%clk 0:00:32]} 31. Ng4 {[%clk 0:00:25]}  Qe7 {[%clk 0:00:32]} 32. e4 {[%clk 0:00:22]}  d4 {[%clk 0:00:30]} 33. e5 {[%clk 0:00:21]}  Rd5 {[%clk 0:00:25]} 34. Nf6+ {[%clk 0:00:21]}  Kg7 {[%clk 0:00:25]} 35. Nxd5 {[%clk 0:00:15]}  Rxd5 {[%clk 0:00:26]} 36. Rcd1 {[%clk 0:00:15]}  Qg5 {[%clk 0:00:23]} 37. Re4 {[%clk 0:00:12]}  Rb5 {[%clk 0:00:20]} 38. Qxh4 {[%clk 0:00:09]}  Qf5 {[%clk 0:00:18]} 39. Qg3 {[%clk 0:00:08]}  Rc5 {[%clk 0:00:18]} 40. Qg4 {[%clk 0:00:08]}  Rc2 {[%clk 0:00:16]} 41. Qxf5 {[%clk 0:00:08]}  gxf5 {[%clk 0:00:17]} 42. Rexd4 {[%clk 0:00:07]}  Nxd4 {[%clk 0:00:18]} 43. Rxd4 {[%clk 0:00:07]}  Rxa2 {[%clk 0:00:19]} 44. b4 {[%clk 0:00:05]}  a5 {[%clk 0:00:18]} 45. bxa5 {[%clk 0:00:05]}  bxa5 {[%clk 0:00:19]} 46. f4 {[%clk 0:00:06]}  a4 {[%clk 0:00:17]} 47. Kh2 {[%clk 0:00:06]}  a3 {[%clk 0:00:16]} 48. Ra4 {[%clk 0:00:07]}  Kg6 {[%clk 0:00:15]} 49. Kg3 {[%clk 0:00:07]}  Ra1 {[%clk 0:00:13]} 50. Ra6+ {[%clk 0:00:08]}  Kg7 {[%clk 0:00:13]} 51. Kh4 {[%clk 0:00:07]}  Rf1 {[%clk 0:00:11]} 52. g3 {[%clk 0:00:07]}  Rf3 {[%clk 0:00:10]} 53. Ra5 {[%clk 0:00:05]}  Kg6 {[%clk 0:00:10]} 54. Ra7 {[%clk 0:00:05]}  Kg7 {[%clk 0:00:10]} 55. e6 {[%clk 0:00:06]}  Kf8 {[%clk 0:00:10]} 56. Rxf7+ {[%clk 0:00:05]}  Ke8 {[%clk 0:00:10]} 57. Ra7 {[%clk 0:00:06]}  Kd8 {[%clk 0:00:08]} 58. Ra5 {[%clk 0:00:06]}  Ke7 {[%clk 0:00:08]} 59. Rxf5 {[%clk 0:00:06]}  Kxe6 {[%clk 0:00:09]} 60. Ra5 {[%clk 0:00:07]}  Kd6 {[%clk 0:00:09]} 61. Kg4 {[%clk 0:00:07]}  Rd3 {[%clk 0:00:08]} 62. h4 {[%clk 0:00:08]}  Kc6 {[%clk 0:00:09]} 63. h5 {[%clk 0:00:08]}  Kb6 {[%clk 0:00:10]} 64. Ra8 {[%clk 0:00:08]}  Kb5 {[%clk 0:00:10]} 65. h6 {[%clk 0:00:08]} 1-0


[Site "https://www.chess.com"]

[Event "Titled Tuesday Blitz March 28 Late 2023"]
[White "Levine, Joseph"]
[Black "Rustemov, Alexander"]
[WhiteFideId "30940346"]
[BlackFideId "4119002"]
[WhiteElo "2351"]
[BlackElo "2880"]
[Result "0-1"]
[Round "11"]
[TimeControl "180+2"]
[Date "2023.03.28"]
[WhiteClock "0:00:03"]
[BlackClock "0:00:37"]

1. e4 {[%clk 0:03:00]}  e6 {[%clk 0:03:00]} 2. d3 {[%clk 0:02:59]}  c5 {[%clk 0:02:59]} 3. Nf3 {[%clk 0:02:59]}  Nc6 {[%clk 0:02:59]} 4. g3 {[%clk 0:02:59]}  g6 {[%clk 0:03:00]} 5. Bg2 {[%clk 0:03:00]}  Bg7 {[%clk 0:03:00]} 6. O-O {[%clk 0:03:00]}  Nge7 {[%clk 0:03:00]} 7. Re1 {[%clk 0:03:01]}  O-O {[%clk 0:02:59]} 8. h4 {[%clk 0:02:58]}  h6 {[%clk 0:02:59]} 9. c3 {[%clk 0:02:57]}  e5 {[%clk 0:02:58]} 10. Be3 {[%clk 0:02:56]}  d6 {[%clk 0:02:58]} 11. Na3 {[%clk 0:02:55]}  Bg4 {[%clk 0:02:58]} 12. Qb3 {[%clk 0:02:53]}  Qd7 {[%clk 0:02:56]} 13. Nd2 {[%clk 0:02:48]}  Kh7 {[%clk 0:02:50]} 14. Ndc4 {[%clk 0:02:43]}  Rab8 {[%clk 0:02:44]} 15. Nb5 {[%clk 0:02:43]}  Nc8 {[%clk 0:02:40]} 16. a4 {[%clk 0:02:41]}  a6 {[%clk 0:02:34]} 17. Nba3 {[%clk 0:02:41]}  Be6 {[%clk 0:02:23]} 18. Qc2 {[%clk 0:02:29]}  b5 {[%clk 0:02:23]} 19. axb5 {[%clk 0:02:29]}  axb5 {[%clk 0:02:23]} 20. Nd2 {[%clk 0:02:29]}  N8e7 {[%clk 0:02:22]} 21. f4 {[%clk 0:01:29]}  Bh3 {[%clk 0:02:17]} 22. Kh2 {[%clk 0:01:02]}  Bxg2 {[%clk 0:02:15]} 23. Kxg2 {[%clk 0:01:03]}  exf4 {[%clk 0:02:10]} 24. Bxf4 {[%clk 0:01:02]}  f5 {[%clk 0:02:06]} 25. Rf1 {[%clk 0:00:41]}  Rf7 {[%clk 0:02:00]} 26. Rf2 {[%clk 0:00:38]}  fxe4 {[%clk 0:01:52]} 27. Nxe4 {[%clk 0:00:37]}  Nf5 {[%clk 0:01:48]} 28. Raf1 {[%clk 0:00:36]}  Ne5 {[%clk 0:01:44]} 29. Bxe5 {[%clk 0:00:30]}  Bxe5 {[%clk 0:01:32]} 30. h5 {[%clk 0:00:30]}  Rbf8 {[%clk 0:01:21]} 31. hxg6+ {[%clk 0:00:27]}  Kxg6 {[%clk 0:01:22]} 32. d4 {[%clk 0:00:27]}  Ne3+ {[%clk 0:01:21]} 33. Kg1 {[%clk 0:00:20]}  Nxc2 {[%clk 0:01:21]} 34. Nxc2 {[%clk 0:00:18]}  Rxf2 {[%clk 0:01:20]} 35. Rxf2 {[%clk 0:00:19]}  Rxf2 {[%clk 0:01:19]} 36. Kxf2 {[%clk 0:00:20]}  Qf5+ {[%clk 0:01:19]} 37. Ke3 {[%clk 0:00:21]}  cxd4+ {[%clk 0:01:18]} 38. cxd4 {[%clk 0:00:22]}  d5 {[%clk 0:01:13]} 39. Nc3 {[%clk 0:00:14]}  Bxg3 {[%clk 0:01:10]} 40. Nb4 {[%clk 0:00:13]}  Qf2+ {[%clk 0:01:03]} 41. Kd3 {[%clk 0:00:12]}  Qxb2 {[%clk 0:00:54]} 42. Nbxd5 {[%clk 0:00:10]}  b4 {[%clk 0:00:49]} 43. Ne2 {[%clk 0:00:04]}  Qb3+ {[%clk 0:00:46]} 44. Ke4 {[%clk 0:00:04]}  Bd6 {[%clk 0:00:42]} 45. Ne3 {[%clk 0:00:03]}  Qb1+ {[%clk 0:00:41]} 46. Kd5 {[%clk 0:00:03]}  Qd3 {[%clk 0:00:37]} 47. Kxd6 {[%clk 0:00:03]}  Qxe3 {[%clk 0:00:37]} 0-1


[Site "https://www.chess.com"]

[Event "Titled Tuesday Blitz March 28 Late 2023"]
[White "Urazayev, Arystanbek"]
[Black "Domingo Nunez, Alejandro"]
[WhiteFideId "13709810"]
[BlackFideId "22245561"]
[WhiteElo "2479"]
[BlackElo "2230"]
[Result "1-0"]
[Round "11"]
[TimeControl "180+2"]
[Date "2023.03.28"]
[WhiteClock "0:01:14"]
[BlackClock "0:00:36"]

1. e4 {[%clk 0:02:55]}  g6 {[%clk 0:03:00]} 2. d4 {[%clk 0:02:54]}  Bg7 {[%clk 0:03:00]} 3. Nf3 {[%clk 0:02:55]}  c6 {[%clk 0:03:01]} 4. c3 {[%clk 0:02:56]}  d5 {[%clk 0:03:02]} 5. Nbd2 {[%clk 0:02:56]}  dxe4 {[%clk 0:03:02]} 6. Nxe4 {[%clk 0:02:57]}  Nf6 {[%clk 0:03:02]} 7. Bd3 {[%clk 0:02:58]}  O-O {[%clk 0:03:02]} 8. O-O {[%clk 0:02:58]}  Nbd7 {[%clk 0:03:03]} 9. Re1 {[%clk 0:02:59]}  Nxe4 {[%clk 0:03:01]} 10. Bxe4 {[%clk 0:03:00]}  e5 {[%clk 0:03:02]} 11. dxe5 {[%clk 0:02:48]}  Nxe5 {[%clk 0:03:02]} 12. Bf4 {[%clk 0:02:47]}  Nxf3+ {[%clk 0:03:01]} 13. Qxf3 {[%clk 0:02:46]}  Be6 {[%clk 0:02:56]} 14. a4 {[%clk 0:02:35]}  Qb6 {[%clk 0:02:54]} 15. b4 {[%clk 0:02:31]}  a5 {[%clk 0:02:50]} 16. Be3 {[%clk 0:02:29]}  Qc7 {[%clk 0:02:47]} 17. Bf4 {[%clk 0:02:27]}  Qc8 {[%clk 0:02:38]} 18. b5 {[%clk 0:02:20]}  Bd5 {[%clk 0:02:33]} 19. Bxd5 {[%clk 0:02:15]}  cxd5 {[%clk 0:02:34]} 20. Qxd5 {[%clk 0:02:16]}  Qxc3 {[%clk 0:02:31]} 21. Rac1 {[%clk 0:02:10]}  Qb4 {[%clk 0:02:30]} 22. Bd6 {[%clk 0:02:08]}  Rfd8 {[%clk 0:02:28]} 23. Re8+ {[%clk 0:02:07]}  Rxe8 {[%clk 0:02:27]} 24. Bxb4 {[%clk 0:02:07]}  axb4 {[%clk 0:02:28]} 25. Qb3 {[%clk 0:01:53]}  Bc3 {[%clk 0:02:27]} 26. g3 {[%clk 0:01:53]}  Re4 {[%clk 0:01:59]} 27. Rd1 {[%clk 0:01:50]}  Re7 {[%clk 0:01:36]} 28. Kg2 {[%clk 0:01:47]}  Kg7 {[%clk 0:01:34]} 29. h4 {[%clk 0:01:46]}  h5 {[%clk 0:01:35]} 30. Rd6 {[%clk 0:01:45]}  Rc7 {[%clk 0:01:27]} 31. Rd3 {[%clk 0:01:40]}  Kh7 {[%clk 0:01:22]} 32. Re3 {[%clk 0:01:37]}  Kg7 {[%clk 0:01:20]} 33. Re2 {[%clk 0:01:37]}  Kh7 {[%clk 0:01:21]} 34. Ra2 {[%clk 0:01:31]}  Ra5 {[%clk 0:01:18]} 35. Qd5 {[%clk 0:01:30]}  Kg7 {[%clk 0:01:13]} 36. Qd8 {[%clk 0:01:29]}  Be5 {[%clk 0:00:58]} 37. Re2 {[%clk 0:01:28]}  b3 {[%clk 0:00:36]} 38. Rxe5 {[%clk 0:01:20]}  b2 {[%clk 0:00:36]} 39. Qxc7 {[%clk 0:01:14]}  b1=Q {[%clk 0:00:36]} 40. Qxa5 {[%clk 0:01:14]} 1-0


[Site "https://www.chess.com"]

[Event "Titled Tuesday Blitz March 28 Late 2023"]
[White "Ozer, Omer Faruk"]
[Black "Flores, Diego"]
[WhiteFideId "6354564"]
[BlackFideId "108049"]
[WhiteElo "2260"]
[BlackElo "2606"]
[Result "0-1"]
[Round "11"]
[TimeControl "180+2"]
[Date "2023.03.28"]
[WhiteClock "0:00:03"]
[BlackClock "0:00:09"]

1. d4 {[%clk 0:03:00]}  Nf6 {[%clk 0:02:57]} 2. Nf3 {[%clk 0:03:00]}  e6 {[%clk 0:02:56]} 3. Bg5 {[%clk 0:03:00]}  h6 {[%clk 0:02:55]} 4. Bh4 {[%clk 0:02:59]}  d6 {[%clk 0:02:56]} 5. Nbd2 {[%clk 0:02:59]}  g5 {[%clk 0:02:56]} 6. Bg3 {[%clk 0:02:59]}  Nh5 {[%clk 0:02:56]} 7. e3 {[%clk 0:02:57]}  Bg7 {[%clk 0:02:54]} 8. Bd3 {[%clk 0:02:53]}  Nd7 {[%clk 0:02:51]} 9. Qe2 {[%clk 0:02:44]}  Qe7 {[%clk 0:02:46]} 10. a4 {[%clk 0:02:44]}  f5 {[%clk 0:02:38]} 11. Nc4 {[%clk 0:02:20]}  Ndf6 {[%clk 0:02:35]} 12. Nfd2 {[%clk 0:02:12]}  Bd7 {[%clk 0:02:30]} 13. c3 {[%clk 0:02:07]}  O-O {[%clk 0:02:27]} 14. f3 {[%clk 0:02:00]}  Nxg3 {[%clk 0:02:26]} 15. hxg3 {[%clk 0:02:00]}  e5 {[%clk 0:01:41]} 16. dxe5 {[%clk 0:01:59]}  dxe5 {[%clk 0:01:42]} 17. e4 {[%clk 0:02:00]}  f4 {[%clk 0:01:43]} 18. gxf4 {[%clk 0:01:54]}  gxf4 {[%clk 0:01:44]} 19. Na5 {[%clk 0:01:43]}  b6 {[%clk 0:01:38]} 20. Bc4+ {[%clk 0:01:43]}  Kh8 {[%clk 0:01:38]} 21. Nab3 {[%clk 0:01:43]}  Be8 {[%clk 0:01:32]} 22. a5 {[%clk 0:01:28]}  Rd8 {[%clk 0:01:29]} 23. axb6 {[%clk 0:01:27]}  axb6 {[%clk 0:01:30]} 24. Qf2 {[%clk 0:01:08]}  Nh5 {[%clk 0:01:27]} 25. Qh4 {[%clk 0:00:48]}  Qxh4+ {[%clk 0:01:09]} 26. Rxh4 {[%clk 0:00:49]}  Ng3 {[%clk 0:00:52]} 27. Ra7 {[%clk 0:00:46]}  b5 {[%clk 0:00:48]} 28. Be6 {[%clk 0:00:40]}  c6 {[%clk 0:00:45]} 29. Nc5 {[%clk 0:00:40]}  h5 {[%clk 0:00:44]} 30. Rh3 {[%clk 0:00:24]}  Bg6 {[%clk 0:00:28]} 31. Bd7 {[%clk 0:00:24]}  Ra8 {[%clk 0:00:27]} 32. Rxa8 {[%clk 0:00:16]}  Rxa8 {[%clk 0:00:28]} 33. Kd1 {[%clk 0:00:16]}  Ra1+ {[%clk 0:00:23]} 34. Kc2 {[%clk 0:00:17]}  Rg1 {[%clk 0:00:24]} 35. Bxc6 {[%clk 0:00:16]}  Rxg2 {[%clk 0:00:24]} 36. Bxb5 {[%clk 0:00:17]}  Bf8 {[%clk 0:00:20]} 37. b4 {[%clk 0:00:17]}  Be7 {[%clk 0:00:18]} 38. Bd3 {[%clk 0:00:16]}  h4 {[%clk 0:00:16]} 39. Nd7 {[%clk 0:00:17]}  Bd6 {[%clk 0:00:15]} 40. b5 {[%clk 0:00:16]}  Be8 {[%clk 0:00:15]} 41. Nf6 {[%clk 0:00:16]}  Bf7 {[%clk 0:00:14]} 42. Rxh4+ {[%clk 0:00:16]}  Kg7 {[%clk 0:00:14]} 43. Nd5 {[%clk 0:00:16]}  Bc5 {[%clk 0:00:12]} 44. Rg4+ {[%clk 0:00:16]}  Kf8 {[%clk 0:00:12]} 45. Rg5 {[%clk 0:00:12]}  Be3 {[%clk 0:00:13]} 46. Rxe5 {[%clk 0:00:10]}  Rxd2+ {[%clk 0:00:12]} 47. Kb3 {[%clk 0:00:10]}  Rxd3 {[%clk 0:00:13]} 48. Kc4 {[%clk 0:00:09]}  Rd1 {[%clk 0:00:10]} 49. Rg5 {[%clk 0:00:03]}  Ne2 {[%clk 0:00:09]} 0-1


[Site "https://www.chess.com"]